bitfinex-derivatives/quotes_ETHF0:USTF0_20241229
["timestamp","ask_amount","ask_price","bid_price","bid_amount"]
[1735510963386,3.2078,3331.1,3330.7,3.2078]
[1735510963578,3.2078,3331.1,3330.8,0.4433]
[1735510963781,0.30078,3331.0,3330.9,0.30079]
[1735510964676,3.2078,3331.1,3330.8,0.4433]
[1735510964886,3.50858,3331.1,3330.9,0.30079]
[1735510965183,3.50858,3331.1,3330.8,0.4433]
[1735510965785,0.30078,3331.0,3330.9,0.30079]
[1735510965998,3.50858,3331.1,3330.9,0.30079]
[1735510966297,3.50858,3331.1,3330.8,0.4433]
[1735510966603,3.50858,3331.1,3330.9,0.30079]
[1735510966998,3.50858,3331.1,3331.0,0.30078]
[1735510967401,3.2078,3331.1,3331.0,0.30078]
[1735510967597,3.50858,3331.1,3330.8,0.4433]
[1735510967899,3.2078,3331.1,3330.8,0.4433]
[1735510968102,3.2078,3331.1,3331.0,0.30078]
[1735510968505,0.05,3330.8,3329.5,7.92142948]
[1735510968699,0.30087,3330.1,3329.9,0.30078]
[1735510968900,3.50931798,3330.2,3329.9,0.30078]
[1735510969098,0.30087,3330.0,3329.9,0.30078]
[1735510969407,0.4225,3330.1,3329.5,9.29302948]
[1735510969605,0.30088,3329.9,3329.8,0.30078]
[1735510970209,0.4225,3330.1,3329.5,4.5794]
[1735510970401,0.30091,3329.7,3329.6,0.30078]
[1735510970596,3.2078,3329.9,3329.6,0.30078]
[1735510970901,0.3009,3329.7,3329.6,0.30078]
[1735510971397,0.30091,3329.6,3329.5,3.2078]
[1735510971797,0.30091,3329.7,3329.5,3.50858]
[1735510972005,5.77999798,3329.9,3329.8,0.30078]
[1735510972406,0.30091,3329.6,3329.5,3.2078]
[1735510972806,0.30091,3329.6,3329.5,3.50858]
[1735510973203,0.30091,3329.6,3329.5,0.30078]
[1735510974005,5.47911798,3329.9,3329.5,0.30078]
[1735510974200,0.30089,3329.8,3329.7,0.30078]
[1735510974510,5.47911798,3329.9,3329.8,0.30078]
[1735510974703,5.77999798,3329.9,3329.8,0.30078]
[1735510975903,0.30091,3329.6,3329.2,3.50874]
[1735510976105,0.30091,3329.6,3329.2,0.30094]
[1735510976305,0.30091,3329.6,3329.5,0.30078]
[1735510976505,2.57222798,3329.6,3329.5,0.30078]
[1735510984112,2.57223798,3329.6,3329.5,0.30078]
[1735510995810,0.30092,3329.6,3329.5,0.30078]
[1735510996007,0.30091,3329.7,3329.5,0.30078]
[1735510996213,0.30091,3329.7,3329.6,0.30091]
[1735510996413,5.47911798,3329.9,3329.6,0.30078]
[1735510996614,5.78000798,3329.9,3329.8,0.30078]
[1735510996920,3.50869,3329.9,3329.8,0.60168]
[1735510997112,3.50869,3329.9,3329.8,1.02868]
[1735510999215,3.50869,3329.9,3329.8,0.30078]
[1735510999912,5.78000798,3329.9,3329.8,0.73378]
[1735511006324,3.50869,3329.9,3329.8,0.73378]
[1735511007817,5.78000798,3329.9,3329.8,0.30078]
[1735511008225,3.50869,3329.9,3329.8,0.30078]
[1735511011719,3.2078,3329.9,3329.8,0.30078]
[1735511011925,3.2078,3329.9,3329.8,0.60168]
[1735511012324,0.30089,3329.9,3329.8,0.30078]
[1735511013925,1.38558728,3329.9,3329.8,0.30078]
[1735511015229,0.30089,3329.9,3329.8,0.60168]
[1735511015631,2.60607896,3329.9,3329.8,0.60168]
[1735511016233,2.60607896,3329.9,3329.8,0.30078]
[1735511016725,0.30089,3329.9,3329.8,0.30078]
[1735511016930,1.38558728,3329.9,3329.8,0.30078]
[1735511017430,0.30089,3329.9,3329.8,0.30078]
[1735511017630,1.38558728,3329.9,3329.8,0.30078]
[1735511018126,0.30089,3329.9,3329.8,0.30078]
[1735511018328,0.30089,3329.9,3329.8,0.76638]
[1735511018834,2.60607896,3329.9,3329.8,0.76638]
[1735511019832,2.30518896,3329.9,3329.8,1.06728]
[1735511020227,0.88518896,3329.9,3329.8,9.27508]
[1735511020427,3.47481411,3330.1,3330.0,0.30088]
[1735511020627,3.47481411,3330.1,3330.0,0.60166]
[1735511021631,1.08469728,3330.3,3330.1,0.30087]
[1735511021836,3.47481411,3330.6,3330.3,0.30085]
[1735511022031,3.47481411,3330.6,3330.5,0.30078]
[1735511023236,6.98343411,3330.8,3330.5,0.30078]
[1735511023438,9.27416811,3330.8,3330.7,0.30078]
[1735511025135,5.799354,3330.8,3330.7,0.30078]
[1735511025538,5.498534,3330.8,3330.7,0.30078]
[1735511026531,8.97334811,3330.8,3330.7,0.30078]
[1735511028134,5.498534,3330.8,3330.7,0.30078]
[1735511028335,5.799344,3330.8,3330.7,0.30078]
[1735511029334,5.498534,3330.8,3330.7,0.30078]
[1735511029542,5.799344,3330.8,3330.7,0.30078]
[1735511030034,6.238844,3330.8,3330.7,0.30078]
[1735511030235,5.799344,3330.8,3330.7,0.30078]
[1735511031536,5.799344,3330.8,3330.2,0.30086]
[1735511031537,0.30084,3330.5,3330.2,0.30086]
[1735511031839,0.30084,3330.5,3330.3,0.30078]
[1735511032037,9.42473433,3330.8,3330.3,0.60163]
[1735511032038,0.30084,3330.6,3330.3,0.60163]
[1735511032244,0.74314,3330.5,3330.3,0.60163]
[1735511032537,9.42473433,3330.8,3330.3,0.60163]
[1735511032739,0.30083,3330.6,3330.3,0.60163]
[1735511033339,0.30084,3330.5,3330.3,0.60163]
[1735511034231,3.47481411,3330.7,3330.4,0.74238]
[1735511034433,3.47481411,3330.7,3330.6,0.30078]
[1735511034642,3.47481411,3330.7,3330.6,0.60161]
[1735511034936,3.77563411,3330.7,3330.6,0.60161]
[1735511035538,3.77563411,3330.7,3330.6,0.30078]
[1735511035841,3.47481411,3330.7,3329.9,0.00236118]
[1735511036039,0.30088,3330.1,3329.9,0.00236118]
[1735511036338,0.30088,3330.1,3330.0,4.72957322]
[1735511036540,0.30089,3329.9,3329.8,6.28718005]
[1735511036738,3.828624,3329.9,3329.8,1.03682263]
[1735511036938,3.828624,3329.9,3329.8,0.71922263]
[1735511037436,1.53789,3329.9,3329.8,0.71922263]
[1735511037639,5.08681649,3329.9,3329.5,0.8784]
[1735511037849,5.08681649,3329.9,3329.7,0.4274]
[1735511039035,3.47494885,3330.1,3329.7,0.72831]
[1735511039343,3.47494885,3330.1,3329.7,0.4274]
[1735511039642,3.77581885,3330.1,3329.7,0.4274]
[1735511040037,0.30087,3330.1,3329.7,0.4274]
[1735511040237,3.2078,3330.2,3329.7,0.4274]
[1735511040540,0.30088,3330.0,3329.7,0.4274]
[1735511040841,3.2078,3330.2,3329.7,0.4274]
[1735511041039,0.30088,3330.1,3329.7,0.4274]
[1735511041235,3.2078,3330.2,3329.7,0.4274]
[1735511041441,3.2078,3330.2,3329.7,0.7283]
[1735511041741,3.50867,3330.2,3329.7,0.7283]
[1735511042539,3.2078,3330.2,3329.7,5.4274]
[1735511042743,2.509,3330.2,3330.1,0.30087]
[1735511043237,2.77624885,3330.3,3330.2,0.30086]
[1735511043435,4.6353049,3330.9,3330.1,7.290734]
[1735511043640,4.6353049,3330.9,3330.8,0.30081]
[1735511043938,4.6353049,3330.9,3330.8,3.50861]
[1735511044137,3.2381049,3330.9,3330.8,9.79961]
[1735511044441,5.49933603,3331.0,3330.9,0.3008]
[1735511044834,5.49933603,3331.0,3330.9,5.3008]
[1735511045034,4.89183603,3331.0,3330.9,5.3008]
[1735511045548,6.95295736,3332.9,3330.9,5.0]
[1735511045739,2.591364,3332.8,3332.0,0.3007]
[1735511045937,2.290734,3332.8,3332.2,0.30068]
[1735511046240,2.591364,3332.8,3332.2,0.30068]
[1735511046434,2.290734,3332.5,3331.8,3.2078]
[1735511046641,2.290734,3332.5,3332.0,0.30069]
[1735511047242,0.75485,3332.6,3332.1,0.30069]
[1735511047832,0.4542,3332.6,3331.8,3.2078]
[1735511048237,0.4542,3332.6,3332.3,0.30067]
[1735511048543,2.290734,3332.5,3332.2,0.30068]
[1735511049237,0.4542,3332.6,3332.3,0.30067]
[1735511049850,3.2078,3332.4,3332.3,0.30067]
[1735511054646,3.2078,3332.4,3332.2,0.30068]
[1735511054948,3.2078,3332.4,3332.3,0.30067]
[1735511058145,3.2078,3332.4,3332.1,0.30068]
[1735511058339,3.2078,3332.4,3331.8,3.2078]
[1735511058651,0.3007,3332.1,3331.8,3.50851]
[1735511058847,0.30071,3331.9,3331.8,3.2078]
[1735511059550,6.250294,3332.0,3330.7,3.2078]
[1735511059843,3.2078,3331.5,3330.7,3.2078]
[1735511060047,0.4199,3331.4,3330.7,3.2078]
[1735511060347,0.30078,3331.2,3330.7,3.2078]
[1735511060550,0.4199,3331.4,3330.7,3.2078]
[1735511060751,0.4199,3331.4,3330.8,0.30081]
[1735511060752,0.30079,3331.0,3330.8,0.30081]
[1735511061044,0.30079,3331.0,3330.9,0.30079]
[1735511061253,0.30078,3331.1,3330.7,3.2078]
[1735511061549,0.4199,3331.4,3331.1,0.30078]
[1735511061550,0.30077,3331.3,3331.1,0.30078]
[1735511061743,0.4199,3331.4,3331.3,0.30076]
[1735511062243,8.10084669,3331.4,3330.7,3.2078]
[1735511062449,0.30078,3331.2,3330.7,3.2078]
[1735511062651,0.30077,3331.3,3331.1,0.30078]
[1735511062841,0.4199,3331.4,3331.2,0.30077]
[1735511063150,0.4199,3331.4,3330.7,3.2078]
[1735511063345,0.4199,3331.4,3331.3,0.30076]
[1735511063549,0.72065,3331.4,3331.3,0.30076]
[1735511064444,0.72065,3331.4,3330.7,3.2078]
[1735511064753,0.30077,3331.3,3331.1,0.30078]
[1735511064945,0.30077,3331.3,3330.7,3.2078]
[1735511065145,0.4199,3331.4,3331.2,0.30077]
[1735511065344,0.72066,3331.4,3331.2,0.30077]
[1735511066048,0.72066,3331.4,3330.7,3.2078]
[1735511066049,0.72066,3331.4,3331.3,0.30076]
[1735511066246,0.4199,3331.4,3331.3,0.30076]
[1735511067550,0.72066,3331.4,3331.3,0.30076]
[1735511068148,0.4199,3331.4,3330.7,3.2078]
[1735511068446,0.4199,3331.4,3331.3,0.30076]
[1735511069151,3.50855,3331.5,3331.4,0.30075]
[1735511069947,0.30075,3331.5,3331.4,0.30075]
[1735511070652,0.30075,3331.5,3331.3,0.30076]
[1735511070950,0.30075,3331.5,3331.4,0.30075]
[1735511071151,0.30075,3331.5,3331.3,0.30076]
[1735511072048,0.30075,3331.5,3331.4,0.30075]
[1735511072955,3.6382,3331.7,3331.4,0.30075]
[1735511073447,0.30075,3331.5,3330.9,3.2078]
[1735511073648,0.30075,3331.5,3331.3,0.30076]
[1735511074556,0.30079,3331.0,3330.9,3.2078]
[1735511074849,2.290734,3331.2,3330.1,9.44162877]
[1735511075055,0.30086,3330.2,3330.1,9.44162877]
[1735511075551,0.76446,3330.2,3330.1,9.44162877]
[1735511076250,0.76446,3330.2,3329.8,0.30089]
[1735511076251,0.4636,3330.2,3329.8,0.30089]
[1735511076553,0.30087,3330.1,3329.9,0.30089]
[1735511076947,0.4636,3330.2,3330.1,0.30087]
[1735511077651,0.4636,3330.2,3329.7,2.290734]
[1735511077852,0.4636,3330.2,3330.0,0.30088]
[1735511078153,0.4636,3330.2,3329.9,0.30089]
[1735511078551,0.76447,3330.2,3329.9,0.30089]
[1735511079457,0.76447,3330.2,3329.7,2.290734]
[1735511079658,0.4636,3330.2,3329.7,2.290734]
[1735511079959,3.50865,3330.3,3330.1,0.30087]
[1735511080261,3.50866,3330.3,3330.1,0.30087]
[1735511080660,3.2078,3330.3,3329.5,3.2078]
[1735511080861,0.3009,3329.9,3329.6,0.30092]
[1735511081056,0.3009,3329.9,3329.5,5.498534]
[1735511081057,0.3009,3329.9,3329.7,0.30091]
[1735511081256,3.2078,3330.3,3329.5,5.498534]
[1735511081759,0.30087,3330.2,3329.9,0.30089]
[1735511082163,0.3009,3329.8,3329.6,0.30092]
[1735511083063,3.2078,3330.3,3329.6,0.30092]
[1735511083455,0.3009,3329.9,3329.6,0.30092]
[1735511083661,0.443,3329.8,3329.6,0.30092]
[1735511084454,0.443,3329.8,3329.3,0.30094]
[1735511084455,0.7439,3329.8,3329.3,0.30094]
[1735511084652,0.7439,3329.8,3329.5,0.30092]
[1735511085265,0.7439,3329.8,3329.2,0.4352]
[1735511085469,0.443,3329.8,3329.5,0.30092]
[1735511085762,0.7439,3329.8,3329.5,0.30092]
[1735511085961,0.443,3329.8,3329.5,0.30092]
[1735511086163,0.30091,3329.7,3329.5,0.30092]
[1735511086365,0.30091,3329.7,3329.2,0.4352]
[1735511086366,0.7439,3329.8,3329.6,0.30092]
[1735511089265,0.7439,3329.8,3329.5,0.30092]
[1735511089662,0.7439,3329.8,3329.6,0.30092]
[1735511089962,0.30091,3329.7,3329.5,0.30092]
[1735511090162,0.4477,3329.6,3329.5,0.30092]
[1735511090967,0.7439,3329.8,3329.1,5.498534]
[1735511091173,0.443,3329.8,3329.1,3.2078]
[1735511091464,0.30094,3329.4,3329.2,0.30095]
[1735511091664,0.443,3329.8,3329.2,0.30095]
[1735511091966,0.30094,3329.4,3329.2,0.30095]
[1735511092258,0.443,3329.8,3329.2,0.30095]
[1735511092462,0.30094,3329.3,3329.2,0.30095]
[1735511093762,0.443,3329.8,3329.1,3.2078]
[1735511093966,0.72065,3329.2,3329.1,3.2078]
[1735511095460,0.4197,3329.2,3328.4,5.498534]
[1735511095660,0.4197,3329.2,3328.7,0.30099]
[1735511095960,0.301,3328.7,3328.5,0.30101]
[1735511096166,1.21351,3328.6,3328.5,0.30101]
[1735511096472,1.21351,3328.6,3328.4,3.50882]
[1735511096768,0.4458,3328.5,3328.4,0.30102]
[1735511096967,0.4458,3328.5,3328.0,3.2078]
[1735511097166,0.74682,3328.5,3328.0,3.2078]
[1735511097467,0.30104,3328.3,3328.2,0.30104]
[1735511097669,0.30104,3328.3,3328.1,0.30105]
[1735511098671,0.30103,3328.4,3328.2,0.30104]
[1735511098863,0.4458,3328.5,3328.0,3.2078]
[1735511099068,0.30103,3328.4,3328.0,3.2078]
[1735511099264,2.290734,3328.2,3327.6,3.2078]
[1735511099469,2.290734,3328.2,3327.1,1.02879293]
[1735511099470,3.2078,3327.7,3327.1,1.02879293]
[1735511099665,0.30111,3327.5,3327.1,1.02879293]
[1735511099867,0.30111,3327.5,3327.2,0.30113]
[1735511100667,0.30111,3327.5,3327.1,1.02879293]
[1735511101063,3.2078,3327.7,3327.1,1.02879293]
[1735511101264,0.30112,3327.5,3327.1,1.32993293]
[1735511101468,3.2078,3327.7,3327.2,0.30113]
[1735511101769,3.2078,3327.7,3327.6,0.3011]
[1735511103066,3.2078,3327.7,3327.2,0.4583]
[1735511103462,3.2078,3327.7,3327.5,0.30111]
[1735511103867,3.2078,3328.1,3328.0,0.30106]
[1735511104774,0.4273,3328.3,3327.7,0.8977]
[1735511105075,0.4273,3328.3,3328.2,0.30104]
[1735511105576,3.2078,3328.5,3328.4,0.30103]
[1735511106870,0.30103,3328.4,3328.1,0.30105]
[1735511107063,0.30105,3328.2,3327.7,0.8977]
[1735511107463,0.4626,3328.1,3327.9,0.30107]
[1735511107873,0.4626,3328.1,3327.7,0.8977]
[1735511108176,0.4626,3328.1,3328.0,0.30106]
[1735511109271,3.6704,3328.1,3327.7,0.8977]
[1735511109477,0.30107,3328.0,3327.8,0.30108]
[1735511109673,3.6704,3328.1,3327.9,0.30107]
[1735511109674,3.97146,3328.1,3327.9,0.30107]
[1735511109874,3.6704,3328.1,3327.2,3.2078]
[1735511110076,0.30109,3327.7,3327.4,0.30111]
[1735511110275,0.30109,3327.7,3327.1,3.75102693]
[1735511110472,0.30109,3327.8,3327.1,3.75102693]
[1735511110777,0.75357,3328.0,3327.8,0.30107]
[1735511111177,0.4525,3328.0,3327.9,0.30107]
[1735511111570,3.6704,3328.1,3328.0,0.30106]
[1735511112077,3.6704,3328.1,3327.4,0.7528]
[1735511112282,3.97145,3328.1,3327.9,0.30107]
[1735511112878,3.6704,3328.1,3328.0,0.30106]
[1735511113173,3.6704,3328.1,3327.4,0.7528]
[1735511113372,3.6704,3328.1,3328.0,0.30106]
[1735511114174,3.2078,3328.1,3328.0,0.30106]
[1735511117872,3.2078,3328.1,3328.0,0.75406]
[1735511118072,3.2078,3328.5,3328.4,0.30103]
[1735511132184,0.8818,3329.3,3328.4,0.30103]
[1735511132392,0.4298,3329.2,3328.5,3.2078]
[1735511132588,0.4298,3329.2,3329.1,0.30096]
[1735511132892,0.72431,3329.7,3329.5,0.30092]
[1735511133092,1.3048,3329.7,3329.0,3.2078]
[1735511133293,1.60571,3329.7,3329.5,0.30092]
[1735511133680,0.30092,3329.6,3329.5,0.30092]
[1735511133885,1.3048,3329.7,3329.0,3.2078]
[1735511134181,0.8814,3329.7,3329.6,0.30092]
[1735511134888,3.44666182,3330.1,3330.0,0.30088]
[1735511135091,3.6609,3330.2,3329.4,0.75235]
[1735511135290,3.6609,3330.2,3329.5,1.3168]
[1735511135494,3.6609,3330.2,3329.6,0.30092]
[1735511135789,3.6609,3330.2,3330.1,0.30087]
[1735511136492,3.2078,3330.2,3330.1,0.30087]
[1735511139693,3.6609,3330.7,3329.9,3.2078]
[1735511140285,3.6609,3330.7,3330.6,0.30083]
[1735511140494,3.2078,3330.7,3330.6,0.30083]
[1735511140890,3.2078,3330.7,3330.2,1.3221]
[1735511141090,3.2078,3330.7,3330.6,0.30083]
[1735511141290,3.2078,3330.7,3329.9,3.2078]
[1735511141495,0.30083,3330.6,3330.3,0.30085]
[1735511143702,3.50862,3330.7,3330.4,0.30084]
[1735511143903,3.2078,3330.7,3329.9,3.2078]
[1735511144103,3.2078,3330.7,3330.6,0.30083]
[1735511147900,3.2078,3330.7,3329.9,3.2078]
[1735511148103,1.19054,3330.6,3330.3,0.30085]
[1735511148301,0.8897,3330.6,3330.1,0.30087]
[1735511148501,3.2078,3330.2,3330.1,0.30087]
[1735511148704,3.2078,3330.2,3329.5,3.043044]
[1735511149108,3.2078,3330.2,3330.1,0.30087]
[1735511154002,0.4457,3330.5,3330.1,0.30087]
[1735511154206,0.4457,3330.5,3330.4,0.30085]
[1735511155313,3.2078,3330.6,3330.5,0.30084]
[1735511156707,3.2078,3331.0,3330.5,2.290734]
[1735511156909,3.2078,3331.0,3330.9,0.3008]
[1735511157810,3.2078,3331.0,3330.5,3.2078]
[1735511158011,3.2078,3331.0,3330.9,0.3008]
[1735511158612,0.30082,3330.8,3330.5,0.30083]
[1735511158813,3.2078,3331.0,3330.5,0.30083]
[1735511158814,0.30082,3330.7,3330.5,0.30083]
[1735511159016,3.6516,3330.6,3330.5,0.30083]
[1735511159509,3.6516,3330.6,3329.9,1.64722]
[1735511159510,0.30086,3330.3,3329.8,4.69601487]
[1735511159707,3.2078,3330.1,3330.0,0.30088]
[1735511160905,0.30085,3330.4,3329.7,0.75228]
[1735511161110,3.93204,3330.5,3330.2,0.30086]
[1735511161317,3.6312,3330.5,3330.4,0.30085]
[1735511161514,0.4438,3330.6,3329.6,0.4346]
[1735511161515,0.4438,3330.6,3330.1,0.75218]
[1735511161711,3.2078,3330.9,3330.2,1.3486]
[1735511161912,3.2078,3330.9,3330.8,0.30081]
[1735511164413,4.123,3331.3,3330.5,0.75209]
[1735511164611,4.123,3331.3,3331.2,0.30077]
[1735511164919,3.2078,3332.1,3331.1,3.541734]
[1735511165213,3.6376,3332.1,3332.0,0.3007]
[1735511166114,3.2078,3332.1,3332.0,0.3007]
[1735511166619,2.31096857,3332.4,3332.3,0.30067]
[1735511166818,2.31096857,3332.4,3332.3,3.50847]
[1735511167015,3.2078,3333.1,3332.9,0.30061]
[1735511167215,3.2078,3333.1,3332.3,2.290734]
[1735511167413,3.2078,3333.0,3332.4,0.30066]
[1735511167712,3.2078,3332.5,3332.2,0.30068]
[1735511168022,0.4375,3332.4,3331.9,2.290734]
[1735511168319,3.6453,3332.4,3332.1,0.30069]
[1735511168620,3.6453,3332.4,3331.9,2.290734]
[1735511168821,3.94597,3332.4,3332.0,0.3007]
[1735511169023,3.94597,3332.4,3331.9,2.290734]
[1735511169322,3.94597,3332.4,3332.1,0.30069]
[1735511169518,0.30071,3332.0,3331.6,0.30074]
[1735511169721,0.4343,3332.3,3331.3,0.30076]
[1735511169722,3.50853,3331.8,3331.3,0.30076]
[1735511169923,3.2078,3331.4,3331.2,0.8712]
[1735511170219,3.2078,3331.4,3330.9,4.69601487]
[1735511170419,0.30076,3331.3,3330.9,4.69601487]
[1735511170918,0.30076,3331.3,3330.9,4.99681487]
[1735511171119,0.08200175,3331.1,3330.9,4.99681487]
[1735511171318,0.79930212,3331.0,3330.9,0.3008]
[1735511171514,0.79930212,3331.0,3330.9,2.591534]
[1735511172219,0.88130387,3331.0,3330.9,0.3008]
[1735511172524,0.88130387,3331.0,3330.9,2.591534]
[1735511174330,0.88130387,3331.0,3330.9,0.3008]
[1735511174631,0.88130387,3331.0,3330.9,2.591534]
[1735511175028,0.88130387,3331.0,3330.9,7.591534]
[1735511175323,0.88130387,3331.0,3330.9,2.591534]
[1735511177328,0.88130387,3331.0,3330.9,3.841534]
[1735511177527,0.88130387,3331.0,3330.9,1.5508]
[1735511178029,0.88130387,3331.0,3330.9,6.5508]
[1735511178629,0.88130387,3331.0,3330.9,1.5508]
[1735511179623,0.88130387,3331.0,3330.9,6.24681487]
[1735511181031,0.88130387,3331.0,3330.9,1.5508]
[1735511181336,0.88130387,3331.0,3330.9,1.98]
[1735511182644,0.88130387,3331.0,3330.9,0.73]
[1735511182853,0.88130387,3331.0,3330.9,3.020734]
[1735511183451,0.88130387,3331.0,3330.9,0.73]
[1735511186335,0.88130387,3331.0,3330.9,5.42601487]
[1735511186533,0.88130387,3331.0,3330.9,8.63381487]
[1735511186737,0.88130387,3331.0,3330.9,9.88381487]
[1735511187128,0.88130387,3331.0,3330.9,14.88381487]
[1735511187325,0.88130387,3331.0,3330.9,9.88381487]
[1735511187632,0.88130387,3331.0,3330.9,14.62942877]
[1735511188036,3.2078,3331.8,3331.7,0.30073]
[1735511190530,0.8699,3332.2,3332.1,0.30069]
[1735511190733,0.4458,3332.2,3332.1,2.591424]
[1735511191127,0.4458,3332.2,3332.1,0.30069]
[1735511191536,0.4458,3332.2,3332.1,2.591424]
[1735511200938,1.262,3333.3,3332.1,2.591424]
[1735511200939,3.2078,3333.0,3332.1,2.290734]
[1735511201142,0.8994,3332.8,3332.7,0.30064]
[1735511201736,0.4351,3332.8,3332.7,0.30064]
[1735511203036,3.2078,3333.0,3332.5,2.290734]
[1735511203239,0.4543,3332.9,3332.8,0.30063]
[1735511203641,0.4543,3332.9,3332.8,3.50843]
[1735511203841,0.4543,3332.9,3332.8,0.30063]
[1735511206244,0.4543,3332.9,3332.8,2.591364]
[1735511208441,3.2078,3333.1,3332.8,2.290734]
[1735511208643,3.2078,3333.1,3333.0,0.30061]
[1735511213045,3.2078,3333.1,3333.0,2.591344]
[1735511214145,0.435,3333.6,3333.5,0.30057]
[1735511219857,3.2078,3334.0,3333.4,2.290734]
[1735511220072,0.4295,3334.1,3334.0,0.30052]
[1735511220760,3.2078,3334.4,3333.9,2.290734]
[1735511220957,0.8911,3334.3,3334.2,2.290734]
[1735511221665,0.8911,3334.3,3334.2,0.3005]
[1735511222167,0.8911,3334.3,3334.1,2.591244]
[1735511222769,0.8911,3334.3,3334.2,0.3005]
[1735511223068,0.8911,3334.3,3334.1,2.290734]
[1735511223262,0.8911,3334.3,3334.1,2.591244]
[1735511223458,0.3005,3334.2,3334.1,2.290734]
[1735511223667,0.30051,3334.1,3333.9,0.30053]
[1735511223870,0.30051,3334.1,3333.8,2.290734]
[1735511223871,0.8911,3334.3,3333.8,2.290734]
[1735511224362,1.1916,3334.3,3333.8,2.290734]
[1735511224566,0.8911,3334.3,3334.1,2.290734]
[1735511225065,1.1916,3334.3,3334.1,2.591244]
[1735511225462,0.8911,3334.3,3334.2,0.3005]
[1735511225663,1.19159,3334.3,3334.2,0.3005]
[1735511226464,0.8911,3334.3,3334.2,0.3005]
[1735511230069,3.2078,3334.4,3334.3,0.30049]
[1735511230376,3.6308,3334.4,3334.3,0.30049]
[1735511230876,3.6308,3334.4,3334.2,0.3005]
[1735511231079,0.4443,3334.3,3334.2,0.3005]
[1735511231775,3.6308,3334.4,3334.3,0.30049]
[1735511233478,0.4593,3334.5,3334.0,2.718834]
[1735511233772,0.4593,3334.5,3334.4,2.591214]
[1735511234075,0.4593,3334.5,3334.4,0.30048]
[1735511234270,0.4593,3334.5,3334.4,2.591214]
[1735511235472,0.4566,3334.7,3334.4,2.290734]
[1735511235673,0.4566,3334.7,3334.6,0.30047]
[1735511235874,3.2078,3334.8,3334.4,2.290734]
[1735511236175,3.2078,3334.8,3334.7,2.591194]
[1735511238679,3.2078,3334.8,3334.7,0.30046]
[1735511238881,0.9129,3335.2,3334.9,0.30044]
[1735511239076,0.9129,3335.2,3335.0,0.30042]
[1735511239377,0.9129,3335.2,3335.1,0.30042]
[1735511239780,0.4482,3335.2,3335.1,0.30042]
[1735511240578,3.2078,3335.3,3334.9,2.290734]
[1735511240579,3.2078,3335.3,3335.2,0.30041]
[1735511240779,3.2078,3335.7,3335.3,0.3004]
[1735511240969,3.2078,3335.7,3335.6,2.591114]
[1735511241772,3.2078,3335.7,3335.6,3.848114]
[1735511249380,3.2078,3335.7,3335.6,2.591114]
[1735511255888,3.2078,3336.2,3335.6,4.581468]
[1735511256088,3.2078,3336.2,3336.1,2.591064]
[1735511256483,3.50805,3337.1,3336.1,5.498534]
[1735511256692,3.2078,3337.1,3337.0,2.290734]
[1735511256891,3.50804,3337.1,3337.0,2.290734]
[1735511257083,3.50804,3337.1,3336.2,1.7104]
[1735511257084,0.30028,3336.8,3336.7,2.290734]
[1735511259387,0.30028,3336.8,3335.9,1.7368]
[1735511259388,5.0,3336.8,3336.4,2.290734]
[1735511259591,3.5081,3336.5,3336.4,2.290734]
[1735511260683,3.5081,3336.5,3336.0,2.290734]
[1735511260684,0.30033,3336.1,3336.0,2.290734]
[1735511260882,3.50813,3336.1,3336.0,1.593334]
[1735511261690,8.95864,3336.1,3335.1,0.4486]
[1735511261886,3.5082,3335.3,3335.2,2.290734]
[1735511263396,3.5082,3335.3,3334.8,2.290734]
[1735511263397,8.2078,3335.3,3334.8,2.290734]
[1735511263688,8.2078,3335.3,3334.0,3.2078]
[1735511263689,0.30048,3334.5,3334.4,2.290734]
[1735511263887,3.50828,3334.5,3334.4,2.290734]
[1735511265285,0.3005,3334.2,3334.1,2.290734]
[1735511268498,3.2078,3334.5,3334.1,2.290734]
[1735511268696,0.30049,3334.4,3334.1,2.290734]
[1735511268993,0.3005,3334.3,3334.1,2.290734]
[1735511269599,3.2078,3334.5,3333.4,0.4465]
[1735511269794,0.3005,3334.3,3334.0,2.290734]
[1735511270496,0.30051,3334.1,3334.0,2.290734]
[1735511271797,3.2078,3334.5,3334.0,2.290734]
[1735511271997,0.3005,3334.3,3334.0,2.290734]
[1735511272400,3.2078,3334.5,3334.0,2.290734]
[1735511272598,0.3005,3334.3,3334.0,2.290734]
[1735511273992,0.30051,3334.2,3334.0,2.290734]
[1735511274499,3.2078,3334.5,3334.0,2.290734]
[1735511274700,0.30051,3334.1,3334.0,2.290734]
[1735511275095,0.30051,3334.2,3334.0,2.290734]
[1735511275494,3.50828,3334.5,3334.1,0.30051]
[1735511275700,0.3005,3334.3,3334.0,2.290734]
[1735511275996,0.3005,3334.3,3334.0,2.591254]
[1735511276200,3.2078,3334.5,3334.0,2.290734]
[1735511276401,0.30049,3334.4,3334.1,0.30051]
[1735511276594,0.30049,3334.4,3334.0,2.591254]
[1735511276896,0.30049,3334.4,3334.0,2.290734]
[1735511277101,0.30049,3334.3,3334.0,0.30051]
[1735511277309,0.30048,3334.4,3334.0,2.290734]
[1735511277606,0.30051,3334.2,3334.0,2.290734]
[1735511278200,0.30051,3334.1,3334.0,2.290734]
[1735511279698,0.30049,3334.4,3334.0,2.591244]
[1735511280402,0.30049,3334.4,3334.0,2.290734]
[1735511280704,0.3005,3334.3,3334.0,2.591254]
[1735511281202,3.2078,3334.5,3334.0,2.290734]
[1735511281399,3.50828,3334.5,3334.2,0.3005]